bitfinex-derivatives/quotes_SOLF0:USTF0_20240924
["timestamp","ask_amount","ask_price","bid_price","bid_amount"]
[1727207739674,26.7066,148.09,148.03,3.3776]
[1727207739875,26.7066,148.09,147.97,26.0329]
[1727207740079,23.33,148.09,147.97,26.0329]
[1727207740374,1.4402,148.12,148.0,23.33]
[1727207740788,1.4402,148.12,148.02,23.33]
[1727207741775,1.4402,148.12,148.09,3.3763]
[1727207742173,1.4402,148.12,148.02,23.33]
[1727207742374,1.4402,148.12,148.04,23.33]
[1727207742573,23.33,148.17,148.07,23.33]
[1727207742972,23.33,148.17,148.05,2.7766]
[1727207744975,23.33,148.17,148.07,23.33]
[1727207745777,26.1087,148.19,148.07,23.33]
[1727207746489,26.1087,148.19,148.14,3.3752]
[1727207746881,26.1087,148.19,148.07,23.33]
[1727207747682,26.1087,148.19,148.14,3.3751]
[1727207747882,26.1087,148.19,148.07,23.33]
[1727207748078,26.1087,148.19,148.15,3.3751]
[1727207748388,26.1087,148.19,148.07,23.33]
[1727207748389,1.3443,148.19,148.09,23.33]
[1727207748685,26.73583906,148.22,148.1,1.3131]
[1727207748988,23.33,148.19,148.07,23.33]
[1727207749185,23.33,148.19,148.14,3.3752]
[1727207749575,23.33,148.17,148.06,8.1971]
[1727207749977,23.33,148.19,148.07,23.33]
[1727207750383,23.33,148.19,148.14,3.3752]
[1727207750584,23.33,148.19,148.07,23.33]
[1727207751582,23.33,148.19,148.14,3.3752]
[1727207753785,23.33,148.19,148.07,23.33]
[1727207753986,23.33,148.19,148.09,23.33]
[1727207754190,23.33,148.19,148.07,23.33]
[1727207754984,23.33,148.15,148.06,1.4431]
[1727207755183,1.3445,148.14,148.06,1.4431]
[1727207756193,1.3445,148.14,148.12,3.3756]
[1727207757193,1.3445,148.14,148.06,1.4431]
[1727207757594,6.17653805,148.33,148.06,107.4431]
[1727207757900,23.33,148.27,148.15,23.33]
[1727207758193,26.64080865,148.27,148.15,23.33]
[1727207758397,23.33,148.27,148.15,23.33]
[1727207758601,23.33,148.29,148.17,23.33]
[1727207758994,1.3445,148.32,148.17,23.33]
[1727207758995,24.6745,148.32,148.17,23.33]
[1727207759195,28.06435459,148.32,148.17,23.33]
[1727207759392,23.33,148.29,148.17,23.33]
[1727207760599,23.33,148.29,148.23,3.3731]
[1727207761185,23.33,148.29,148.17,23.33]
[1727207762391,23.33,148.29,148.24,3.3729]
[1727207762699,23.33,148.29,148.17,23.33]
[1727207762900,24.6745,148.32,148.2,23.33]
[1727207763097,28.1305939,148.32,148.21,2.6537]
[1727207763393,28.1305939,148.32,148.2,23.33]
[1727207763394,23.33,148.25,148.2,3.3739]
[1727207763699,1.3835,148.24,148.2,3.3739]
[1727207764088,1.3835,148.24,148.13,27.3572]
[1727207764290,24.7275,148.23,148.13,2.6537]
[1727207764708,24.7275,148.23,148.16,3.3748]
[1727207764894,24.7275,148.23,148.13,2.6537]
[1727207765811,24.7275,148.23,148.16,3.3748]
[1727207766294,24.7275,148.23,148.17,3.3745]
[1727207766693,24.7275,148.23,148.13,2.6537]
[1727207767500,23.33,148.2,148.08,23.33]
[1727207767805,23.33,148.2,148.08,26.0788]
[1727207768011,23.33,148.11,147.91,10.1415]
[1727207768206,23.33,148.09,147.96,23.33]
[1727207768500,23.33,148.07,147.95,23.33]
[1727207768707,23.33,148.07,148.0,3.3783]
[1727207768999,23.33,148.07,147.94,23.33]
[1727207769201,26.7076,148.04,147.94,23.33]
[1727207769501,23.33,148.04,147.93,1.4368]
[1727207769701,23.33,148.02,147.93,1.4368]
[1727207770205,3.3784,148.01,147.96,3.3794]
[1727207770800,41.3681,148.02,147.96,3.3794]
[1727207771102,37.99,148.05,147.93,39.4268]
[1727207771601,37.99,148.03,147.97,3.3791]
[1727207772004,37.99,148.03,147.95,3.3796]
[1727207772203,37.99,148.0,147.91,1.312]
[1727207772600,37.99,148.0,147.93,3.3799]
[1727207772799,37.99,148.0,147.91,1.312]
[1727207773001,37.99,148.03,147.91,1.312]
[1727207773301,37.99,148.07,147.93,37.99]
[1727207773692,37.99,148.07,148.0,3.3783]
[1727207774900,37.99,148.07,147.93,37.99]
[1727207775096,37.99,148.07,147.95,37.99]
[1727207775503,37.99,148.07,148.01,3.3782]
[1727207775713,173.82586334,148.1,147.93,37.99]
[1727207775714,37.99,148.04,147.93,37.99]
[1727207776407,7.05633067,148.21,148.03,37.99]
[1727207776607,37.99,148.15,148.03,37.99]
[1727207776906,37.99,148.14,148.0,37.99]
[1727207779105,37.99,148.14,148.07,3.3769]
[1727207780009,37.99,148.14,148.08,3.3766]
[1727207780406,37.99,148.16,148.09,3.3763]
[1727207781505,37.99,148.16,148.05,37.99]
[1727207781701,2.6792,148.18,148.07,37.99]
[1727207782704,2.6792,148.18,148.11,3.3758]
[1727207783608,2.6792,148.18,148.07,37.99]
[1727207784310,2.6792,148.18,148.13,3.3755]
[1727207784809,2.6792,148.18,148.17,3.3746]
[1727207784999,2.6792,148.18,148.1,37.99]
[1727207785397,2.6792,148.18,148.14,3.3751]
[1727207786006,6.0538,148.18,148.14,3.3751]
[1727207786207,2.6792,148.18,148.12,3.3756]
[1727207786512,3.3752,148.15,148.07,37.99]
[1727207787709,3.3752,148.15,148.12,3.3757]
[1727207788510,3.3749,148.16,148.12,3.3757]
[1727207788815,2.6792,148.18,148.07,37.99]
[1727207789117,3.3748,148.17,148.07,37.99]
[1727207789313,37.99,148.16,148.05,37.99]
[1727207789513,37.99,148.14,148.02,37.99]
[1727207789901,3.39797489,148.13,148.01,2.8725]
[1727207790303,3.3763,148.1,148.01,26.2225]
[1727207790604,3.3763,148.1,148.06,3.3771]
[1727207791010,3.3765,148.09,148.06,3.3771]
[1727207792113,3.3763,148.1,148.06,3.3771]
[1727207792615,2.6792,148.18,148.05,23.35]
[1727207792810,2.6792,148.18,148.11,23.35]
[1727207793327,2.6792,148.18,148.14,3.3752]
[1727207794116,2.6792,148.18,148.09,2.7499]
[1727207794416,3.3749,148.16,148.13,3.3755]
[1727207794802,2.6792,148.18,148.12,3.3757]
[1727207795216,1.3028,148.18,148.11,37.95]
[1727207795816,4.6772,148.18,148.11,37.95]
[1727207796114,1.4094,148.21,148.11,37.95]
[1727207796315,3.3742,148.19,148.11,37.95]
[1727207796503,1.4094,148.21,148.11,37.95]
[1727207797513,3.3742,148.19,148.15,3.3749]
[1727207799407,1.4094,148.21,148.09,3.9829]
[1727207799613,37.95,148.2,148.09,3.9829]
[1727207800210,3.3744,148.18,148.15,3.3749]
[1727207802019,3.3743,148.19,148.15,3.3749]
[1727207802218,37.95,148.2,148.15,3.3749]
[1727207802411,37.95,148.2,148.14,3.3752]
[1727207802807,1.4094,148.21,148.11,37.95]
[1727207803505,3.374,148.2,148.17,3.3745]
[1727207804709,3.3738,148.21,148.18,3.3744]
[1727207804905,1.3564,148.22,148.11,37.95]
[1727207805317,1.3368,148.25,148.15,37.95]
[1727207805512,1.3368,148.25,148.16,1.431]
[1727207805916,1.3368,148.25,148.19,3.374]
[1727207806806,1.3368,148.25,148.16,1.431]
[1727207807817,4.7096,148.25,148.21,3.3736]
[1727207809523,3.3731,148.24,148.2,3.3739]
[1727207811328,3.3733,148.23,148.2,3.3739]
[1727207811513,3.3733,148.23,148.18,3.3742]
[1727207811820,3.3733,148.23,148.16,1.431]
[1727207812119,3.3733,148.23,148.19,3.374]
[1727207812717,1.3368,148.25,148.2,3.3739]
[1727207815323,1.3368,148.25,148.21,3.3737]
[1727207816423,24.6768,148.25,148.21,3.3737]
[1727207817327,3.42752008,148.24,148.21,3.3737]
[1727207817719,23.34,148.23,148.18,3.3743]
[1727207818225,1.3368,148.25,148.14,24.7121]
[1727207818419,3.45587738,148.24,148.14,24.7121]
[1727207818824,3.45587738,148.24,148.21,3.3737]
[1727207819026,3.45587738,148.24,148.14,24.7121]
[1727207819421,3.45587738,148.24,148.2,3.3738]
[1727207819819,3.45587738,148.24,148.19,3.374]
[1727207820025,3.45587738,148.24,148.14,24.7121]
[1727207821235,23.34,148.24,148.14,24.7121]
[1727207821423,3.45487249,148.23,148.14,24.7121]
[1727207821833,3.45487249,148.23,148.19,3.3741]
[1727207822832,23.34,148.24,148.14,1.3721]
[1727207823036,3.36607825,148.24,148.14,1.3721]
[1727207823231,1.3368,148.25,148.18,3.3743]
[1727207823626,23.34,148.23,148.18,3.3743]
[1727207823833,26.7232969,148.23,148.18,3.3743]
[1727207824335,26.7232969,148.23,148.14,1.3721]
[1727207825125,3.3832969,148.23,148.14,24.7121]
[1727207825332,1.3368,148.25,148.21,3.3735]
[1727207825529,91.22415427,148.27,148.16,23.34]
[1727207825929,91.22415427,148.27,148.21,3.3735]
[1727207826122,91.22415427,148.27,148.16,23.34]
[1727207826328,91.22415427,148.27,148.17,1.2328]
[1727207826730,91.22415427,148.27,148.18,1.3877]
[1727207827136,91.22415427,148.27,148.22,3.3734]
[1727207827738,1.3199,148.27,148.23,3.3732]
[1727207828236,23.34,148.28,148.23,3.3732]
[1727207828432,1.4415,148.31,148.18,1.3877]
[1727207828433,24.6738,148.3,148.24,3.3729]
[1727207828731,24.6738,148.3,148.19,23.34]
[1727207828932,1.3338,148.3,148.26,3.3726]
[1727207829143,1.3338,148.3,148.21,23.34]
[1727207829328,1.3338,148.3,148.22,1.3776]
[1727207830430,1.3338,148.3,148.25,3.3728]
[1727207834845,23.34,148.28,148.18,1.3877]
[1727207835036,23.34,148.26,148.18,1.3877]
[1727207835233,23.34,148.26,148.15,1.4296]
[1727207835438,23.34,148.23,148.15,1.4296]
[1727207835636,3.39261609,148.22,148.15,1.4296]
[1727207836135,1.3402,148.25,148.15,1.4296]
[1727207836332,15.9202,148.25,148.16,14.58]
[1727207836637,14.58,148.25,148.16,14.58]
[1727207837243,14.58,148.25,148.22,3.3734]
[1727207838352,24.6702,148.29,148.22,3.3734]
[1727207839346,24.6702,148.29,148.21,3.3736]
[1727207839539,24.6702,148.29,148.17,23.33]
[1727207840542,24.6702,148.29,148.21,3.3735]
[1727207841128,24.6702,148.29,148.17,23.33]
[1727207841540,24.6702,148.29,148.2,3.3738]
[1727207841748,24.6702,148.29,148.17,23.33]
[1727207842338,24.6702,148.29,148.22,3.3733]
[1727207845048,6.17653805,148.33,148.26,23.33]
[1727207845343,6.17653805,148.33,148.22,106.0]
[1727207845543,6.17653805,148.33,148.22,129.33]
[1727207846645,6.17653805,148.33,148.29,3.3717]
[1727207847149,6.17653805,148.33,148.22,129.33]
[1727207847737,6.17653805,148.33,148.28,3.372]
[1727207847945,6.17653805,148.33,148.24,23.33]
[1727207848448,6.17653805,148.33,148.32,3.3712]
[1727207850054,6.17653805,148.33,148.32,26.7012]
[1727207850242,4.06483805,148.33,148.32,3.3712]
[1727207853153,4.65926223,148.35,148.32,23.33]
[1727207853744,4.65926223,148.35,148.34,3.3708]
[1727207856154,4.65926223,148.35,148.27,23.33]
[1727207857148,4.65926223,148.35,148.24,80.96]
[1727207857448,4.65926223,148.35,148.27,23.33]
[1727207858561,4.65926223,148.35,148.34,3.3708]
[1727207858755,4.65926223,148.35,148.27,14.58]
[1727207859149,4.65926223,148.35,148.32,3.371]
[1727207859454,4.65926223,148.35,148.29,14.58]
[1727207859652,4.65926223,148.35,148.33,3.3708]
[1727207859850,4.65926223,148.35,148.29,14.58]
[1727207860245,4.65926223,148.35,148.27,23.33]
[1727207860955,4.65926223,148.35,148.31,3.3713]
[1727207862954,4.65926223,148.35,148.3,3.3716]
[1727207863145,4.1213,148.34,148.3,3.3716]
[1727207863350,4.1213,148.34,148.25,23.33]
[1727207863553,4.1213,148.34,148.29,3.3717]
[1727207863959,4.1213,148.34,148.3,3.3715]
[1727207864160,4.1213,148.34,148.25,23.33]
[1727207865161,4.1213,148.34,148.3,3.3715]
[1727207866567,4.1213,148.34,148.29,3.3717]
[1727207870672,4.1213,148.34,148.28,3.3719]
[1727207870967,4.1213,148.34,148.22,23.33]
[1727207872067,4.1213,148.34,148.29,3.3719]
[1727207872662,4.1213,148.34,148.22,23.33]
[1727207873266,4.1213,148.34,148.25,23.33]
[1727207874565,4.1213,148.34,148.31,3.3713]
[1727207876465,2.7626,148.34,148.32,3.371]
[1727207876664,2.7626,148.34,148.27,23.33]
[1727207876869,4.65926223,148.35,148.27,23.33]
[1727207877073,4.65926223,148.35,148.3,23.33]
[1727207878973,4.65926223,148.35,148.34,3.3708]
[1727207883180,4.65926223,148.35,148.28,14.58]
[1727207883776,4.65926223,148.35,148.32,3.3711]
[1727207883983,4.65926223,148.35,148.28,14.58]
[1727207884286,4.65926223,148.35,148.32,3.371]
[1727207884683,4.65926223,148.35,148.28,14.58]
[1727207886892,4.65926223,148.35,148.33,3.371]
[1727207890590,4.65926223,148.35,148.28,14.58]
[1727207891882,4.65926223,148.35,148.33,3.3708]
[1727207892287,4.65926223,148.35,148.28,14.58]
[1727207893386,4.65926223,148.35,148.33,3.3709]
[1727207896187,4.65926223,148.35,148.26,14.58]
[1727207896692,4.65926223,148.35,148.28,14.58]
[1727207897292,4.65926223,148.35,148.33,3.3709]
[1727207898604,4.65926223,148.35,148.32,3.3711]
[1727207898809,4.65926223,148.35,148.28,14.58]
[1727207899308,4.65926223,148.35,148.32,3.3711]
[1727207899998,4.65926223,148.35,148.33,3.3708]
[1727207900205,4.65926223,148.35,148.28,14.58]
[1727207900406,4.65926223,148.35,148.3,14.58]
[1727207900611,4.65926223,148.35,148.34,3.3708]
[1727207900808,4.65926223,148.35,148.34,12.7008]
[1727207901107,4.65926223,148.35,148.34,3.3708]
[1727207901412,4.65926223,148.35,148.31,9.33]
[1727207902111,4.65926223,148.35,148.34,3.3708]
[1727207902811,4.65926223,148.35,148.33,3.3709]
[1727207903414,4.65926223,148.35,148.32,3.3711]
[1727207903711,9.33,148.34,148.32,3.3711]
[1727207904010,9.33,148.34,148.33,3.371]
[1727207904412,9.33,148.34,148.3,9.33]
[1727207905812,9.33,148.34,148.33,3.371]
[1727207907303,13.98926223,148.35,148.33,3.371]
[1727207908518,4.65926223,148.35,148.34,3.3708]
[1727207909617,13.98926223,148.35,148.32,12.701]
[1727207909811,9.33,148.34,148.25,8.377912]
[1727207910018,9.33,148.34,148.29,9.33]
[1727207910220,9.33,148.33,148.29,9.33]
[1727207910420,9.33,148.33,148.3,3.3716]
[1727207910610,9.33,148.33,148.29,9.33]
[1727207910920,12.65827362,148.32,148.29,3.3718]
[1727207911117,12.65827362,148.32,148.27,9.33]
[1727207911717,9.33,148.33,148.29,9.33]
[1727207911918,12.6997632,148.32,148.28,9.33]
[1727207912118,9.33,148.32,148.28,9.33]
[1727207912820,12.73361649,148.32,148.31,3.3713]
[1727207914515,12.73361649,148.32,148.24,4.6937666]
[1727207914720,9.33,148.28,148.24,4.6937666]
[1727207914917,9.33,148.28,148.25,19.83603704]
[1727207915116,9.33,148.28,148.27,3.3723]
[1727207915318,9.33,148.3,148.27,7.62924501]
[1727207915525,9.33,148.3,148.28,7.62924501]
[1727207915820,9.33,148.3,148.29,3.3719]
[1727207918622,3.44601889,148.31,148.3,3.3717]
[1727207918931,9.33,148.32,148.28,9.33]
[1727207919322,4.65926223,148.35,148.28,9.33]
[1727207919632,9.33,148.34,148.29,9.33]
[1727207919817,9.33,148.34,148.31,9.33]
[1727207920019,13.98926223,148.35,148.33,3.3708]
[1727207920221,13.98926223,148.35,148.33,9.33]
[1727207920222,4.65926223,148.35,148.33,9.33]
[1727207921027,4.65926223,148.35,148.34,3.3708]
[1727207923029,13.98926223,148.35,148.31,9.33]
[1727207923226,13.98926223,148.35,148.32,7.49712885]
[1727207923527,13.98926223,148.35,148.31,9.33]
[1727207923923,13.98926223,148.35,148.32,7.49798637]
[1727207924134,13.98926223,148.35,148.31,9.33]
[1727207924320,13.98926223,148.35,148.32,7.49879673]
[1727207924517,9.33,148.33,148.27,8.40250721]
[1727207924830,9.33,148.33,148.28,34.49440692]
[1727207925121,9.33,148.33,148.32,3.3712]
[1727207926222,9.33,148.34,148.33,3.371]
[1727207926735,4.65926223,148.35,148.34,3.3708]
[1727207934129,4.65926223,148.35,148.34,12.7008]
[1727207934433,4.65926223,148.35,148.34,10.86417818]
[1727207935525,4.65926223,148.35,148.34,20.19417818]
[1727207938931,13.98926223,148.35,148.34,10.86417818]
[1727207939443,13.98926223,148.35,148.34,3.3708]
[1727207940330,4.65926223,148.35,148.34,3.3708]
[1727207940534,4.65926223,148.35,148.34,10.86097637]
[1727207941840,4.65926223,148.35,148.34,20.19097637]
[1727207942141,4.70469566,148.36,148.35,3.3705]
[1727207942333,7.05498975,148.38,148.35,23.75274265]
[1727207942528,7.05498975,148.38,148.37,3.3701]
[1727207942733,9.84567522,148.39,148.37,21.31326416]
[1727207942932,9.84567522,148.39,148.38,21.31326416]
[1727207943136,12.69249747,148.4,148.38,21.31326416]
[1727207943338,12.69249747,148.4,148.39,28.77511587]
[1727207943644,12.69249747,148.4,148.39,32.14471587]
[1727207944035,12.69249747,148.4,148.39,22.81471587]
[1727207944233,12.69249747,148.4,148.39,3.3696]
[1727207945139,12.69249747,148.4,148.39,10.84436238]
[1727207945444,12.69249747,148.4,148.39,12.6996]
[1727207945745,12.69249747,148.4,148.39,20.17107817]
[1727207946139,12.69249747,148.4,148.39,12.6996]
[1727207946645,12.69249747,148.4,148.39,20.1677398]
[1727207947041,6.43439162,148.43,148.4,3.3694]
[1727207947238,6.43439162,148.43,148.4,20.20786356]
[1727207947436,6.43439162,148.43,148.41,16.79408441]
[1727207948344,6.43439162,148.43,148.42,16.79408441]
[1727207948536,6.43439162,148.43,148.42,20.16298441]
[1727207948933,6.76010015,148.45,148.42,20.17448476]
[1727207949143,6.76010015,148.45,148.43,12.6987]
[1727207949541,6.76010015,148.45,148.43,20.15094828]
[1727207950742,6.76010015,148.45,148.43,12.6987]
[1727207955951,6.76010015,148.45,148.43,3.3687]
[1727207956147,6.76010015,148.45,148.43,12.6987]
[1727207959348,6.76010015,148.45,148.43,3.3687]
[1727207959651,6.76010015,148.45,148.44,3.3685]
[1727207959846,23.96121807,148.46,148.44,16.7483934]
[1727207960043,23.96121807,148.46,148.45,7.4183934]
[1727207960348,23.96121807,148.46,148.44,9.33]
[1727207960651,23.96121807,148.46,148.45,3.3683]
[1727207963761,23.96121807,148.46,148.45,12.6983]
[1727207966154,6.22499255,148.48,148.45,9.33]
[1727207966359,6.22499255,148.48,148.47,9.33]
[1727207966973,9.08690574,148.49,148.47,9.33]
[1727207967261,9.08690574,148.49,148.48,9.33]
[1727207967456,9.08690574,148.49,148.48,12.6976]
[1727207970470,9.08690574,148.49,148.48,3.3676]
[1727207970764,9.08690574,148.49,148.48,12.6976]
[1727207972458,9.08690574,148.49,148.44,7.41393052]
[1727207972669,9.08690574,148.49,148.47,9.33]
[1727207972971,9.08690574,148.49,148.43,7.42834919]
[1727207973162,9.08690574,148.49,148.46,9.33]
[1727207973561,9.08690574,148.49,148.48,12.6976]
[1727207976167,9.08690574,148.49,148.48,3.3676]
[1727207977268,9.08690574,148.49,148.48,12.6976]
[1727207978767,9.08690574,148.49,148.42,7.4118183]
[1727207978975,1.4434,148.48,148.45,9.33]
[1727207979166,1.4434,148.48,148.46,9.33]
[1727207979361,1.4434,148.48,148.47,3.3678]
[1727207980071,1.4434,148.48,148.47,12.6978]
[1727207980477,1.4434,148.48,148.45,9.33]
[1727207980970,1.4434,148.48,148.46,9.33]
[1727207981177,1.4434,148.48,148.47,3.3678]
[1727207982375,10.7734,148.48,148.37,1.4082]
[1727207982674,1.4,148.47,148.46,3.3679]
[1727207982882,1.4,148.47,148.46,12.6979]
[1727207983777,1.4,148.47,148.46,3.3679]
[1727207984480,1.4,148.47,148.4,3.29144204]
[1727207984676,1.4,148.47,148.45,9.33]
[1727207984979,1.4,148.47,148.37,1.4082]
[1727207985178,10.73,148.47,148.37,1.4082]
[1727207985381,10.73,148.47,148.42,9.33]
[1727207985681,10.73,148.47,148.44,3.3683]
[1727207985877,9.33,148.45,148.37,1.4082]
[1727207986085,9.33,148.43,148.39,9.33]
[1727207986384,10.7297,148.42,148.37,9.33]
[1727207986883,10.7297,148.42,148.38,9.33]
[1727207987177,1.3997,148.42,148.39,9.33]
[1727207987376,1.3997,148.42,148.38,9.33]
[1727207987775,1.3997,148.42,148.39,3.3696]
[1727207987973,9.33,148.4,148.32,80.84]
[1727207988371,9.33,148.41,148.36,9.33]
[1727207988876,1.3997,148.42,148.36,9.33]
[1727207989079,1.3997,148.42,148.38,9.33]
[1727207989276,1.3997,148.42,148.41,9.33]
[1727207989476,1.3997,148.42,148.41,12.6992]
[1727207989682,1.3997,148.42,148.41,3.3692]
[1727207990085,1.3997,148.42,148.39,9.33]
[1727207990381,1.3997,148.42,148.38,9.33]
[1727207990879,10.7297,148.42,148.33,1.3702]
[1727207991087,1.3997,148.42,148.39,9.33]
[1727207991282,10.7297,148.42,148.33,1.3702]
[1727207991478,1.3997,148.42,148.41,3.3692]
[1727207991679,1.3997,148.42,148.41,12.6992]
[1727207992188,1.4089,148.45,148.44,3.3685]
[1727207992373,10.7389,148.45,148.33,1.3702]
[1727207992685,9.33,148.43,148.39,9.33]
[1727207992886,9.33,148.43,148.33,1.3702]
[1727207992887,1.4089,148.45,148.4,9.33]
[1727207993085,9.33,148.44,148.4,9.33]
[1727207993276,9.33,148.44,148.41,3.3691]
[1727207993480,9.33,148.44,148.4,9.33]
[1727207993784,9.33,148.44,148.41,3.3691]
[1727207994380,9.33,148.43,148.4,3.3694]
[1727207994583,9.33,148.43,148.39,9.33]
[1727207994781,9.33,148.43,148.33,1.3702]
[1727207995085,9.33,148.42,148.37,9.33]
[1727207995481,1.4089,148.45,148.36,9.33]
[1727207995783,9.33,148.42,148.37,9.33]
[1727207996086,9.33,148.42,148.39,3.3695]
[1727207996689,9.33,148.41,148.39,3.3695]
[1727207996885,10.7173,148.4,148.34,9.33]
[1727207997090,9.33,148.38,148.34,9.33]
[1727207998083,12.06,148.39,148.35,9.33]
[1727207998276,9.33,148.38,148.34,9.33]
[1727207998480,9.33,148.38,148.36,3.3703]
[1727207998987,9.33,148.37,148.27,1.3329]
[1727207999284,9.33,148.32,148.25,1.3942]
[1727207999481,9.33,148.31,148.27,9.33]
[1727207999689,10.7002,148.31,148.27,9.33]
[1727207999983,10.7002,148.31,148.25,1.3942]
[1727207999984,1.3702,148.31,148.3,12.7017]
[1727208001492,1.3702,148.31,148.3,3.3717]
[1727208001698,1.3702,148.31,148.29,3.3718]
[1727208001892,10.7002,148.31,148.29,3.3718]
[1727208002195,1.3702,148.31,148.27,9.33]
[1727208002385,1.3702,148.31,148.25,14.56]
[1727208002989,1.3702,148.31,148.3,3.3717]
[1727208003492,1.4019,148.39,148.3,14.56]
[1727208003790,1.4175,148.38,148.37,14.56]
[1727208003997,15.8968,148.46,148.37,14.56]
[1727208004294,2.785,148.45,148.4,14.56]
[1727208004693,2.785,148.45,148.42,3.3687]
[1727208004989,1.4175,148.45,148.4,14.56]
[1727208005189,1.4175,148.45,148.41,14.56]
[1727208005591,9.08690574,148.49,148.36,4.83730456]
[1727208005592,9.08690574,148.49,148.43,14.56]
[1727208005797,10.39730574,148.49,148.43,14.56]
[1727208005985,10.39730574,148.49,148.38,6.94166215]
[1727208005986,14.56,148.47,148.38,6.94166215]
[1727208006185,14.56,148.45,148.39,3.3694]
[1727208006388,14.56,148.43,148.38,6.94166215]
[1727208006702,1.3104,148.42,148.36,7.45236921]
[1727208006995,1.3104,148.42,148.4,3.3693]
[1727208007206,14.56,148.48,148.4,14.56]
[1727208007499,18.7148,148.48,148.46,3.3679]
[1727208007793,14.56,148.47,148.38,14.56]
[1727208007994,14.56,148.47,148.44,3.3684]
[1727208008294,4.1548,148.48,148.4,14.56]
[1727208008498,2.8444,148.48,148.45,3.3682]
[1727208008704,1.4419,148.47,148.45,3.3682]
[1727208009300,1.4419,148.47,148.46,3.368]
[1727208011292,9.08690574,148.49,148.35,15.87171314]
[1727208011293,9.08690574,148.49,148.43,14.56]
[1727208012204,9.08690574,148.49,148.48,3.3676]
[1727208014721,9.08690574,148.49,148.39,15.9354]
[1727208015010,14.56,148.43,148.37,6.95507295]
[1727208015191,14.56,148.43,148.35,1.364]
[1727208015392,14.56,148.41,148.37,4.67072356]
[1727208015601,14.56,148.41,148.38,3.3696]
[1727208015789,14.56,148.41,148.35,1.364]
[1727208015996,1.4041,148.42,148.35,1.364]
[1727208016201,14.56,148.41,148.35,1.364]
[1727208016700,14.56,148.41,148.39,3.3694]
[1727208017199,1.4041,148.42,148.4,3.3694]
[1727208017407,1.4041,148.42,148.36,14.56]
[1727208017796,14.56,148.47,148.38,14.56]
[1727208017992,14.56,148.47,148.35,1.364]
[1727208018204,1.4105,148.48,148.44,3.3683]
[1727208018393,1.4105,148.48,148.39,23.28]
[1727208018798,1.4105,148.48,148.45,3.3681]
[1727208019098,1.4105,148.48,148.39,23.28]
[1727208019401,9.08690574,148.49,148.42,23.28]
[1727208019705,9.08690574,148.49,148.43,1.3319]
[1727208019906,9.08690574,148.49,148.47,3.3678]
[1727208020092,9.08690574,148.49,148.43,1.3319]
[1727208020496,9.08690574,148.49,148.48,3.3676]
[1727208021608,9.08690574,148.49,148.46,3.3678]
[1727208022303,9.08690574,148.49,148.45,3.3682]
[1727208022799,9.08690574,148.49,148.4,23.28]
[1727208025006,9.08690574,148.49,148.47,3.3677]
[1727208025211,9.08690574,148.49,148.4,23.28]
[1727208026006,9.08690574,148.49,148.42,23.28]
[1727208026210,9.08690574,148.49,148.48,3.3676]
[1727208029309,32.36690574,148.49,148.41,6.95258275]
[1727208029508,32.36690574,148.49,148.39,6.95258275]
[1727208029700,33.70630574,148.49,148.45,3.3682]